fUSD/lending_fUSD_20260514
["ID","MTS","AMOUNT","RATE_DAILY","PERIOD"]
[422233169,1778739038000,-500.0,0.00014596,2]
[422233149,1778739038000,-500.0,0.00014596,2]
[422233242,1778739038000,-500.0,0.0001483,2]
[422233352,1778739038000,-2366.0,0.000149,5]
[422233246,1778739038000,-500.0,0.0001483,2]
[422233308,1778739038000,-393.97825776,0.00014858,2]
[422233318,1778739038000,-162.0,0.00014871,2]
[422233320,1778739038000,-408.0,0.00014879,2]
[422233324,1778739038000,-200.0,0.0001488,2]
[422233322,1778739038000,-1000.0,0.0001488,2]
[422233337,1778739038000,-321.0,0.00014897,2]
[422233326,1778739038000,-328.0,0.00014881,2]
[422233328,1778739038000,-321.0,0.00014883,2]
[422233330,1778739038000,-220.67775096,0.00014895,2]
[422233331,1778739038000,-7499.42871774,0.00014895,2]
[422233344,1778739038000,-577.21677654,0.00014898,2]
[422233335,1778739038000,-577.21677654,0.00014895,2]
[422233306,1778739038000,-159.0,0.00014856,2]
[422233340,1778739038000,-7499.42871773,0.00014898,2]
[422233333,1778739038000,-4280.11482937,0.00014895,2]
[422233342,1778739038000,-4280.11482935,0.00014898,2]
[422233346,1778739038000,-2257.67,0.000149,2]
[422233348,1778739038000,-6643.51158342,0.000149,3]
[422233354,1778739038000,-1100.0,0.000149,5]
[422233366,1778739038000,-155.44571025,0.000149,2]
[422233356,1778739038000,-4033.8945625,0.000149,2]
[422233350,1778739038000,-393.97825776,0.000149,2]
[422233364,1778739038000,-7219.44876881,0.000149,2]
[422233360,1778739038000,-11019.10637419,0.000149,2]
[422233362,1778739038000,-7499.42871773,0.000149,2]
[422233358,1778739038000,-220.67775095,0.000149,2]
[422233338,1778739038000,-220.67775095,0.00014898,2]
[422233300,1778739038000,-386.16164,0.0001485,2]
[422233244,1778739038000,-500.0,0.0001483,2]
[422233316,1778739038000,-321.0,0.00014869,2]
[422233312,1778739038000,-328.0,0.00014866,2]
[422233248,1778739038000,-500.0,0.0001483,2]
[422233253,1778739038000,-500.0,0.0001483,2]
[422233255,1778739038000,-500.0,0.0001483,2]
[422233251,1778739038000,-500.0,0.0001483,2]
[422233262,1778739038000,-500.0,0.0001483,2]
[422233264,1778739038000,-500.0,0.0001483,2]
[422233260,1778739038000,-500.0,0.0001483,2]
[422233266,1778739038000,-500.0,0.0001483,2]
[422233257,1778739038000,-500.0,0.0001483,2]
[422233271,1778739038000,-500.0,0.0001483,2]
[422233273,1778739038000,-500.0,0.0001483,2]
[422233278,1778739038000,-500.0,0.0001483,2]
[422233269,1778739038000,-500.0,0.0001483,2]
[422233275,1778739038000,-500.0,0.0001483,2]
[422233287,1778739038000,-408.0,0.00014838,2]
[422233310,1778739038000,-386.16164,0.0001486,2]
[422233314,1778739038000,-408.0,0.00014867,2]
[422233304,1778739038000,-1645.819,0.00014854,2]
[422233302,1778739038000,-164.098,0.00014854,2]
[422233298,1778739038000,-386.16163,0.0001485,2]
[422233295,1778739038000,-368.88443664,0.0001485,2]
[422233289,1778739038000,-328.0,0.00014839,2]
[422233285,1778739038000,-408.0,0.0001483,2]
[422233292,1778739038000,-15000.0,0.00014846,2]
[422233280,1778739038000,-264.89014969,0.0001483,2]
[422233293,1778739038000,-7219.44876881,0.0001485,2]
[422233283,1778739038000,-200.15,0.0001483,2]
[422233407,1778739039000,-463.59016987,0.0001499,2]
[422233415,1778739039000,-3649.8382307,0.00014995,2]
[422233409,1778739039000,-300.0,0.00014994,2]
[422233400,1778739039000,-279.88135709,0.00014986,2]
[422233413,1778739039000,-968.2337001,0.00014995,2]
[422233411,1778739039000,-300.0,0.00014994,2]
[422233427,1778739039000,-350.0,0.00014995,3]
[422233419,1778739039000,-1755278.2169871,0.00014995,2]
[422233421,1778739039000,-165004.0433601,0.00014995,2]
[422233423,1778739039000,-166.2037064,0.00014995,2]
[422233436,1778739039000,-300.0,0.00014999,2]
[422233425,1778739039000,-193501.4853684,0.00014995,2]
[422233405,1778739039000,-288.37111373,0.00014986,2]
[422233417,1778739039000,-9193.5204721,0.00014995,2]
[422233398,1778739039000,-278.33797665,0.00014986,2]
[422233368,1778739039000,-4280.11482935,0.000149,2]
[422233382,1778739039000,-10000.0,0.00014953,2]
[422233384,1778739039000,-321.0,0.00014958,2]
[422233396,1778739039000,-463.59016987,0.00014985,2]
[422233378,1778739039000,-408.0,0.00014932,2]
[422233392,1778739039000,-6111.0,0.00014971,2]
[422233374,1778739039000,-541.72900382,0.00014924,2]
[422233388,1778739039000,-193.0,0.00014963,2]
[422233390,1778739039000,-328.0,0.00014963,2]
[422233380,1778739039000,-15000.0,0.00014952,2]
[422233376,1778739039000,-341.0,0.0001493,2]
[422233386,1778739039000,-169.0,0.00014959,2]
[422233372,1778739039000,-321.0,0.00014924,2]
[422233433,1778739039000,-151.0,0.00014997,2]
[422233370,1778739039000,-328.0,0.00014905,2]
[422233394,1778739039000,-328.0,0.00014977,2]
[422233440,1778739039000,-219.0,0.00014999,2]
[422233402,1778739039000,-227.69260748,0.00014986,2]
[422233438,1778739039000,-187.16915046,0.00014999,2]
[422233495,1778739039000,-1495.35681201,0.00015,2]
[422233493,1778739039000,-2210.41753017,0.00015,2]
[422233488,1778739039000,-4178.02219016,0.00015,2]
[422233490,1778739039000,-150.0,0.00015,2]
[422233492,1778739039000,-150.0,0.00015,2]
[422233484,1778739039000,-557715.59080232,0.00015,2]
[422233491,1778739039000,-21659.16403148,0.00015,2]
[422233494,1778739039000,-65090.50636331,0.00015,2]
[422233486,1778739039000,-150.0,0.00015,2]
[422233478,1778739039000,-913544.73865599,0.00015,2]
[422233476,1778739039000,-150.0,0.00015,2]
[422233480,1778739039000,-1006.05591119,0.00015,2]
[422233474,1778739039000,-1831.0,0.00015,5]
[422233472,1778739039000,-1233.176,0.00014999,2]
[422233467,1778739039000,-3542.0,0.00014999,2]
[422233482,1778739039000,-1624111.26607568,0.00015,2]
[422233465,1778739039000,-625.0,0.00014999,2]
[422233515,1778739039000,-632.52279043,0.00014646,2]
[422233432,1778739039000,-182.76204826,0.00014996,2]
[422233442,1778739039000,-275.0,0.00014999,2]
[422233446,1778739039000,-205.827,0.00014999,2]
[422233457,1778739039000,-242.055,0.00014999,2]
[422233451,1778739039000,-244.325,0.00014999,2]
[422233453,1778739039000,-194.533,0.00014999,2]
[422233429,1778739039000,-385.71111015,0.00014996,2]
[422233463,1778739039000,-926.0,0.00014999,2]
[422233459,1778739039000,-185.0,0.00014999,2]
[422233471,1778739039000,-1270.0,0.00014999,2]
[422233469,1778739039000,-150.0,0.00014999,2]
[422233444,1778739039000,-250.0,0.00014999,2]
[422233461,1778739039000,-243.621,0.00014999,2]
[422233449,1778739039000,-185.313,0.00014999,2]
[422233455,1778739039000,-250.0,0.00014999,2]
[422233516,1778739040000,-4367.47720957,0.00014646,2]
[422233519,1778739040000,-196.87,0.00015,2]
[422233518,1778739040000,-357107.60069327,0.00015,2]
[422233517,1778739040000,-577.21677654,0.000149,2]
[422233521,1778739040000,-544.35604211,0.00015,2]
[422233520,1778739040000,-535968.78035794,0.00015,2]
[422233533,1778739043000,-159.90161115,0.000147,2]
[422233534,1778739043000,-22685.17767885,0.00015,2]
[422233833,1778739045000,-1168.70150701,0.00015,2]
[422233828,1778739045000,-266.50268525,0.000147,2]
[422233830,1778739045000,-417.0,0.00014999,2]
[422233825,1778739045000,-152.0,0.00014431,7]
[422233835,1778739045000,-327.4299999,0.00015,2]
[422233852,1778739046000,-152.0,0.00014431,7]
[422233871,1778739046000,-952.26391814,0.00015,2]
[422233869,1778739046000,-3896.2896008,0.00015,2]
[422233854,1778739046000,-150305.53562036,0.00015,2]
[422234548,1778739076000,153.94,7.438e-05,2]
[422234563,1778739634000,-300.0,0.00013736,2]
[422234549,1778739634000,-200.0,0.00013109,2]
[422234551,1778739634000,-150.0,0.00013297,2]
[422234550,1778739634000,-500.0,0.00013256,2]
[422234553,1778739634000,-150.0,0.00013387,2]
[422234552,1778739634000,-500.0,0.00013356,2]
[422234554,1778739634000,-2410.0,0.00013475,2]
[422234557,1778739634000,-152.76,0.00013699,2]
[422234558,1778739634000,-152.76,0.00013699,2]
[422234559,1778739634000,-152.76,0.0001372,2]
[422234561,1778739634000,-150.99,0.0001372,2]
[422234560,1778739634000,-932.46,0.0001372,2]
[422234562,1778739634000,-9999.99,0.0001372,2]
[422234555,1778739634000,-220.131,0.0001349,2]
[422234556,1778739634000,-152.0,0.0001367,3]
[422234569,1778739635000,-9999.99,0.00013737,2]
[422234564,1778739635000,-300.0,0.00013736,2]
[422234565,1778739635000,-300.0,0.00013736,2]
[422234566,1778739635000,-1200.0,0.00013736,2]
[422234568,1778739635000,-1150.25,0.00013737,2]
[422234567,1778739635000,-217.99,0.00013737,2]
[422234571,1778739635000,-2000.0,0.00013769,2]
[422234573,1778739635000,-702.73,0.00013898,2]
[422234572,1778739635000,-3128.3552543,0.000138,2]
[422234574,1778739635000,-152.76,0.00014,2]
[422234570,1778739635000,-299.99,0.00013737,2]
[422234575,1778739688000,183.61,0.00013572,2]
[422234576,1778739701000,216.56260721,0.00013356,2]
[422234590,1778739827000,-229.32479112,0.00041203,90]
[422234591,1778739827000,-395.52400047,0.00041203,60]
[422234587,1778739827000,-180.1954859,0.00041203,90]
[422234588,1778739827000,-233.12512358,0.00041203,91]
[422234586,1778739827000,-165.37,0.00041203,60]
[422234585,1778739827000,-150.137723,0.00041203,30]
[422234583,1778739827000,-255.6,0.00041203,30]
[422234579,1778739827000,-70000.00000004,0.00041203,70]
[422234582,1778739827000,-164.7716474,0.00041203,30]
[422234581,1778739827000,-199.54095649,0.00041203,31]
[422234580,1778739827000,-101546.52,0.00041203,32]
[422234578,1778739827000,-161.74672649,0.00041203,30]
[422234577,1778739827000,-528441.97079565,0.00041203,30]
[422234589,1778739827000,-2008.63348504,0.00041203,60]
[422234584,1778739827000,-199.86104554,0.00041203,60]
[422234592,1778739827000,-165.40331429,0.00041203,30]
[422234594,1778739827000,-195.12753846,0.00041203,30]
[422234608,1778739827000,-500.0,0.00041203,120]
[422234610,1778739827000,-500.0,0.00041203,120]
[422234593,1778739827000,-323.72120917,0.00041203,30]
[422234611,1778739827000,-500.0,0.00041203,120]
[422234609,1778739827000,-500.0,0.00041203,120]
[422234606,1778739827000,-500.0,0.00041203,120]
[422234607,1778739827000,-500.0,0.00041203,120]
[422234605,1778739827000,-500.0,0.00041203,120]
[422234604,1778739827000,-136.96757332,0.00041203,120]
[422234601,1778739827000,-161.46935926,0.00041203,30]
[422234602,1778739827000,-198.1428706,0.00041203,90]
[422234600,1778739827000,-189.03810295,0.00041203,60]
[422234599,1778739827000,-776.65402097,0.00041203,30]
[422234597,1778739827000,-1125.19038026,0.00041203,30]
[422234598,1778739827000,-1465.18151981,0.00041203,60]
[422234596,1778739827000,-496.81179166,0.00041203,49]
[422234595,1778739827000,-1618.62069085,0.00041203,30]
[422234603,1778739827000,-1000.0,0.00041203,30]
[422234625,1778739828000,-500.0,0.00041203,120]
[422234624,1778739828000,-500.0,0.00041203,120]
[422234626,1778739828000,-313.3447265,0.00041203,120]
[422234627,1778739828000,-2797.80735397,0.00041203,60]
[422234632,1778739828000,-8404.76567021,0.00041203,120]
[422234630,1778739828000,-177.52806276,0.00041203,120]
[422234631,1778739828000,-12086.97210587,0.00041203,120]
[422234623,1778739828000,-500.0,0.00041203,120]
[422234628,1778739828000,-10944.0,0.00041203,30]
[422234619,1778739828000,-500.0,0.00041203,120]
[422234612,1778739828000,-500.0,0.00041203,120]
[422234622,1778739828000,-500.0,0.00041203,120]
[422234621,1778739828000,-500.0,0.00041203,120]
[422234618,1778739828000,-500.0,0.00041203,120]
[422234615,1778739828000,-500.0,0.00041203,120]
[422234616,1778739828000,-500.0,0.00041203,120]
[422234617,1778739828000,-500.0,0.00041203,120]
[422234614,1778739828000,-500.0,0.00041203,120]
[422234613,1778739828000,-527.56542612,0.00041203,120]
[422234629,1778739828000,-5208.88,0.00041203,120]
[422234620,1778739828000,-500.0,0.00041203,120]
[422234634,1778739828000,-520.07483813,0.00041203,120]
[422234641,1778739828000,-500.0,0.00041203,120]
[422234636,1778739828000,-172.427,0.00041203,120]
[422234657,1778739828000,-500.0,0.00041203,120]
[422234655,1778739828000,-500.0,0.00041203,120]
[422234656,1778739828000,-500.0,0.00041203,120]
[422234651,1778739828000,-247.02108703,0.00041203,120]
[422234653,1778739828000,-500.0,0.00041203,120]
[422234654,1778739828000,-500.0,0.00041203,120]
[422234652,1778739828000,-1407170.41007549,0.00041203,30]
[422234648,1778739828000,-500.0,0.00041203,120]
[422234635,1778739828000,-500.0,0.00041203,120]
[422234647,1778739828000,-500.0,0.00041203,120]
[422234646,1778739828000,-500.0,0.00041203,120]
[422234649,1778739828000,-500.0,0.00041203,120]
[422234645,1778739828000,-500.0,0.00041203,120]
[422234650,1778739828000,-500.0,0.00041203,120]
[422234637,1778739828000,-3647.54533441,0.00041203,120]
[422234639,1778739828000,-299.78184729,0.00041203,120]
[422234640,1778739828000,-500.0,0.00041203,120]
[422234633,1778739828000,-500.0,0.00041203,120]
[422234643,1778739828000,-500.0,0.00041203,120]
[422234642,1778739828000,-500.0,0.00041203,120]
[422234644,1778739828000,-511.86798222,0.00041203,120]
[422234638,1778739828000,-246.22431059,0.00041203,120]
[422234668,1778739829000,-500.0,0.00041203,120]
[422234672,1778739829000,-500.0,0.00041203,120]
[422234674,1778739829000,-500.0,0.00041203,120]
[422234675,1778739829000,-500.0,0.00041203,120]
[422234673,1778739829000,-500.0,0.00041203,120]
[422234671,1778739829000,-442.225798,0.00041203,120]
[422234669,1778739829000,-500.0,0.00041203,120]
[422234670,1778739829000,-500.0,0.00041203,120]
[422234667,1778739829000,-500.0,0.00041203,120]
[422234683,1778739829000,-500.0,0.00041203,120]
[422234666,1778739829000,-500.0,0.00041203,120]
[422234660,1778739829000,-500.0,0.00041203,120]
[422234663,1778739829000,-500.0,0.00041203,120]
[422234664,1778739829000,-500.0,0.00041203,120]
[422234662,1778739829000,-500.0,0.00041203,120]
[422234661,1778739829000,-500.0,0.00041203,120]
[422234658,1778739829000,-500.0,0.00041203,120]
[422234659,1778739829000,-500.0,0.00041203,120]
[422234677,1778739829000,-176.66572935,0.00041203,120]
[422234665,1778739829000,-500.0,0.00041203,120]
[422234679,1778739829000,-500.0,0.00041203,120]
[422234690,1778739829000,-500.0,0.00041203,120]
[422234676,1778739829000,-211.11349212,0.00041203,120]
[422234678,1778739829000,-24011.70969379,0.00041203,120]
[422234698,1778739829000,-500.0,0.00041203,120]
[422234696,1778739829000,-500.0,0.00041203,120]
[422234693,1778739829000,-500.0,0.00041203,120]
[422234695,1778739829000,-500.0,0.00041203,120]
[422234694,1778739829000,-500.0,0.00041203,120]
[422234691,1778739829000,-500.0,0.00041203,120]
[422234689,1778739829000,-500.0,0.00041203,120]
[422234692,1778739829000,-500.0,0.00041203,120]
[422234697,1778739829000,-500.0,0.00041203,120]
[422234688,1778739829000,-500.0,0.00041203,120]
[422234687,1778739829000,-201.99851089,0.00041203,120]
[422234686,1778739829000,-500.0,0.00041203,120]
[422234685,1778739829000,-500.0,0.00041203,120]
[422234682,1778739829000,-500.0,0.00041203,120]
[422234684,1778739829000,-361.92037938,0.00041203,120]
[422234680,1778739829000,-500.0,0.00041203,120]
[422234681,1778739829000,-500.0,0.00041203,120]
[422234699,1778739829000,-500.0,0.00041203,120]
[422234713,1778739830000,-500.0,0.00041203,120]
[422234712,1778739830000,-500.0,0.00041203,120]
[422234711,1778739830000,-500.0,0.00041203,120]
[422234710,1778739830000,-500.0,0.00041203,120]
[422234708,1778739830000,-105792.80423888,0.00041203,31]
[422234707,1778739830000,-603.84112892,0.00041203,120]
[422234703,1778739830000,-500.0,0.00041203,120]
[422234706,1778739830000,-500.0,0.00041203,120]
[422234702,1778739830000,-500.0,0.00041203,120]
[422234704,1778739830000,-500.0,0.00041203,120]
[422234705,1778739830000,-500.0,0.00041203,120]
[422234700,1778739830000,-500.0,0.00041203,120]
[422234701,1778739830000,-500.0,0.00041203,120]
[422234714,1778739830000,-500.0,0.00041203,120]
[422234709,1778739830000,-4083.89841301,0.00041203,31]
[422234716,1778739830000,-387.966,0.00041203,120]
[422234723,1778739830000,-500.0,0.00041203,120]
[422234715,1778739830000,-500.0,0.00041203,120]
[422234732,1778739830000,-192.80698793,0.00041203,120]
[422234731,1778739830000,-363.03242668,0.00041203,120]
[422234718,1778739830000,-50000.0,0.00041203,108]
[422234728,1778739830000,-500.0,0.00041203,120]
[422234729,1778739830000,-500.0,0.00041203,120]
[422234726,1778739830000,-500.0,0.00041203,120]
[422234727,1778739830000,-625.17043992,0.00041203,120]
[422234730,1778739830000,-203.18357545,0.00041203,120]
[422234725,1778739830000,-500.0,0.00041203,120]
[422234720,1778739830000,-500.0,0.00041203,120]
[422234722,1778739830000,-500.0,0.00041203,120]
[422234721,1778739830000,-500.0,0.00041203,120]
[422234717,1778739830000,-278.75,0.00041203,120]
[422234719,1778739830000,-500.0,0.00041203,120]
[422234724,1778739830000,-500.0,0.00041203,120]
[422234741,1778739831000,-161.0810709,0.00041203,120]
[422234751,1778739831000,-200.73214209,0.00041203,120]
[422234750,1778739831000,-211.47294718,0.00041203,120]
[422234748,1778739831000,-238.51276939,0.00041203,120]
[422234749,1778739831000,-156.41911133,0.00041203,120]
[422234745,1778739831000,-175.34109532,0.00041203,120]
[422234747,1778739831000,-185.86156593,0.00041203,120]
[422234746,1778739831000,-192.44599461,0.00041203,120]
[422234743,1778739831000,-163.55932978,0.00041203,120]
[422234753,1778739831000,-198.59962488,0.00041203,120]
[422234744,1778739831000,-273.83009395,0.00041203,120]
[422234740,1778739831000,-162.25832385,0.00041203,120]
[422234739,1778739831000,-227.20626094,0.00041203,120]
[422234738,1778739831000,-228.00753849,0.00041203,120]
[422234736,1778739831000,-171.20399575,0.00041203,120]
[422234737,1778739831000,-178.52965714,0.00041203,120]
[422234735,1778739831000,-179.91756595,0.00041203,120]
[422234734,1778739831000,-411.18090984,0.00041203,120]
[422234733,1778739831000,-215.53321847,0.00041203,120]
[422234742,1778739831000,-162.0277342,0.00041203,120]
[422234754,1778739831000,-300.03,0.00041203,120]
[422234772,1778739831000,-539.37084208,0.00041203,120]
[422234755,1778739831000,-221.71734754,0.00041203,120]
[422234752,1778739831000,-222.68447166,0.00041203,120]
[422234773,1778739831000,-514.63516555,0.00041203,120]
[422234774,1778739831000,-180.39450209,0.00041203,120]
[422234775,1778739831000,-221.02114502,0.00041203,120]
[422234770,1778739831000,-184.37446456,0.00041203,120]
[422234767,1778739831000,-178.43527184,0.00041203,120]
[422234768,1778739831000,-268.34405172,0.00041203,120]
[422234769,1778739831000,-201.34229801,0.00041203,120]
[422234766,1778739831000,-188.76747826,0.00041203,120]
[422234771,1778739831000,-169.6097422,0.00041203,120]
[422234763,1778739831000,-522.95588946,0.00041203,120]
[422234765,1778739831000,-606.4762505,0.00041203,120]
[422234762,1778739831000,-164.32225625,0.00041203,120]
[422234761,1778739831000,-177.20615785,0.00041203,120]
[422234759,1778739831000,-163.24995911,0.00041203,120]
[422234756,1778739831000,-156.01447134,0.00041203,120]
[422234760,1778739831000,-173.7843921,0.00041203,120]
[422234758,1778739831000,-225.77409391,0.00041203,120]
[422234757,1778739831000,-192.59401869,0.00041203,120]
[422234764,1778739831000,-500.0,0.00041203,120]
[422234786,1778739832000,-2091.24,0.00041203,120]
[422234789,1778739832000,-221.63814148,0.00041203,120]
[422234791,1778739832000,-2091.24,0.00041203,120]
[422234790,1778739832000,-2091.24,0.00041203,120]
[422234794,1778739832000,-2091.24,0.00041203,120]
[422234787,1778739832000,-2091.24,0.00041203,120]
[422234788,1778739832000,-2091.24,0.00041203,120]
[422234785,1778739832000,-2091.24,0.00041203,120]
[422234781,1778739832000,-2091.24,0.00041203,120]
[422234782,1778739832000,-170.68339556,0.00041203,120]
[422234783,1778739832000,-2091.24,0.00041203,120]
[422234780,1778739832000,-2091.24,0.00041203,120]
[422234776,1778739832000,-152.20013524,0.00041203,120]
[422234777,1778739832000,-1340.55,0.00041203,120]
[422234779,1778739832000,-2091.24,0.00041203,120]
[422234778,1778739832000,-2091.24,0.00041203,120]
[422234793,1778739832000,-2091.24,0.00041203,120]
[422234784,1778739832000,-2091.24,0.00041203,120]
[422234792,1778739832000,-2091.24,0.00041203,120]
[422234798,1778739832000,-2091.24,0.00041203,120]
[422234795,1778739832000,-2091.24,0.00041203,120]
[422234811,1778739832000,-179.99356886,0.00041203,120]
[422234813,1778739832000,-233.1256261,0.00041203,120]
[422234812,1778739832000,-298.20746478,0.00041203,120]
[422234814,1778739832000,-500.0,0.00041203,120]
[422234810,1778739832000,-300.88481333,0.00041203,120]
[422234809,1778739832000,-253.44659607,0.00041203,120]
[422234807,1778739832000,-188.29558985,0.00041203,120]
[422234808,1778739832000,-199.77228852,0.00041203,120]
[422234806,1778739832000,-500.0,0.00041203,120]
[422234815,1778739832000,-500.0,0.00041203,120]
[422234803,1778739832000,-2091.24,0.00041203,120]
[422234804,1778739832000,-2091.24,0.00041203,120]
[422234800,1778739832000,-2091.24,0.00041203,120]
[422234802,1778739832000,-193.10002898,0.00041203,120]
[422234801,1778739832000,-2091.24,0.00041203,120]
[422234799,1778739832000,-2091.24,0.00041203,120]
[422234796,1778739832000,-2091.24,0.00041203,120]
[422234797,1778739832000,-244.83527797,0.00041203,120]
[422234805,1778739832000,-2091.27502328,0.00041203,120]
[422234827,1778739833000,-500.0,0.00041203,120]
[422234831,1778739833000,-174.68358137,0.00041203,120]
[422234828,1778739833000,-500.0,0.00041203,120]
[422234835,1778739833000,-257.26673341,0.00041203,120]
[422234830,1778739833000,-500.0,0.00041203,120]
[422234833,1778739833000,-500.0,0.00041203,120]
[422234824,1778739833000,-500.0,0.00041203,120]
[422234829,1778739833000,-500.0,0.00041203,120]
[422234826,1778739833000,-500.0,0.00041203,120]
[422234819,1778739833000,-500.0,0.00041203,120]
[422234825,1778739833000,-500.0,0.00041203,120]
[422234820,1778739833000,-500.0,0.00041203,120]
[422234822,1778739833000,-500.0,0.00041203,120]
[422234821,1778739833000,-500.0,0.00041203,120]
[422234818,1778739833000,-500.0,0.00041203,120]
[422234817,1778739833000,-500.0,0.00041203,120]
[422234816,1778739833000,-500.0,0.00041203,120]
[422234832,1778739833000,-500.0,0.00041203,120]
[422234823,1778739833000,-500.0,0.00041203,120]
[422234834,1778739833000,-380.83476053,0.00041203,120]
[422234855,1778739833000,-213.3998651,0.00041203,120]
[422234839,1778739833000,-500.0,0.00041203,120]
[422234856,1778739833000,-481.04021033,0.00041203,120]
[422234836,1778739833000,-229.69350857,0.00041203,120]
[422234854,1778739833000,-186.57705835,0.00041203,120]
[422234857,1778739833000,-250.99575092,0.00041203,120]
[422234853,1778739833000,-175.18868125,0.00041203,120]
[422234850,1778739833000,-269.54511679,0.00041203,120]
[422234851,1778739833000,-305.59065071,0.00041203,120]
[422234852,1778739833000,-188.12722529,0.00041203,120]
[422234845,1778739833000,-162.13822243,0.00041203,120]
[422234849,1778739833000,-189.15105527,0.00041203,120]
[422234848,1778739833000,-475.2618754,0.00041203,120]
[422234838,1778739833000,-500.0,0.00041203,120]
[422234847,1778739833000,-191.33452294,0.00041203,120]
[422234840,1778739833000,-500.0,0.00041203,120]
[422234843,1778739833000,-500.0,0.00041203,120]
[422234837,1778739833000,-500.0,0.00041203,120]
[422234841,1778739833000,-500.0,0.00041203,120]
[422234844,1778739833000,-534.729,0.00041203,120]
[422234846,1778739833000,-336.71131818,0.00041203,120]
[422234842,1778739833000,-500.0,0.00041203,120]
[422234867,1778739834000,-210.90470222,0.00041203,120]
[422234876,1778739834000,-254.22745563,0.00041203,120]
[422234875,1778739834000,-648.48842759,0.00041203,120]
[422234871,1778739834000,-199.34363186,0.00041203,120]
[422234874,1778739834000,-499.51313195,0.00041203,120]
[422234873,1778739834000,-224.51780633,0.00041203,120]
[422234872,1778739834000,-221.31372689,0.00041203,120]
[422234870,1778739834000,-162.11664164,0.00041203,120]
[422234869,1778739834000,-302.03709488,0.00041203,120]
[422234858,1778739834000,-197.38511453,0.00041203,120]
[422234866,1778739834000,-182.80339091,0.00041203,120]
[422234865,1778739834000,-453.08220123,0.00041203,120]
[422234863,1778739834000,-202.20759976,0.00041203,120]
[422234864,1778739834000,-157.90051017,0.00041203,120]
[422234862,1778739834000,-186.23787998,0.00041203,120]
[422234860,1778739834000,-202.3935537,0.00041203,120]
[422234859,1778739834000,-298.83387909,0.00041203,120]
[422234878,1778739834000,-198.04724557,0.00041203,120]
[422234868,1778739834000,-276.965579,0.00041203,120]
[422234877,1778739834000,-200.96948521,0.00041203,120]
[422234861,1778739834000,-205.37495764,0.00041203,120]
[422234879,1778739834000,-174.02337812,0.00041203,120]
[422234896,1778739834000,-164.89277532,0.00041203,120]
[422234899,1778739834000,-181.3985409,0.00041203,120]
[422234900,1778739834000,-500.0,0.00041203,120]
[422234897,1778739834000,-176.30627676,0.00041203,120]
[422234898,1778739834000,-185.67597654,0.00041203,120]
[422234893,1778739834000,-500.0,0.00041203,120]
[422234892,1778739834000,-500.0,0.00041203,120]
[422234895,1778739834000,-435.44915187,0.00041203,120]
[422234894,1778739834000,-500.0,0.00041203,120]
[422234889,1778739834000,-500.0,0.00041203,120]
[422234880,1778739834000,-500.0,0.00041203,120]
[422234890,1778739834000,-500.0,0.00041203,120]
[422234891,1778739834000,-500.0,0.00041203,120]
[422234881,1778739834000,-167.17158652,0.00041203,120]
[422234883,1778739834000,-500.0,0.00041203,120]
[422234884,1778739834000,-500.0,0.00041203,120]
[422234882,1778739834000,-500.0,0.00041203,120]
[422234886,1778739834000,-500.0,0.00041203,120]
[422234887,1778739834000,-500.0,0.00041203,120]
[422234888,1778739834000,-500.0,0.00041203,120]
[422234885,1778739834000,-500.0,0.00041203,120]